bitfinex/quotes_ETHUSD_20240621
["timestamp","ask_amount","ask_price","bid_price","bid_amount"]
[1718976516754,2.30023,3478.0,3476.8,2.30092]
[1718976517077,2.30023,3478.0,3477.0,2.30082]
[1718976517078,2.30044,3477.6,3477.0,2.30082]
[1718976517257,3.0,3478.2,3477.4,2.3005]
[1718976517453,2.3003,3477.9,3477.4,2.3005]
[1718976517657,2.3003,3477.9,3477.5,2.30048]
[1718976517954,3.0,3478.2,3476.9,0.230092]
[1718976517955,2.30057,3477.4,3477.0,2.30083]
[1718976518157,2.30051,3477.5,3477.1,2.30075]
[1718976518466,2.30058,3477.4,3477.1,2.30075]
[1718976518648,2.30058,3477.4,3476.7,2.301]
[1718976518649,2.30058,3477.4,3477.0,2.30081]
[1718976518860,2.30066,3477.3,3476.9,2.30088]
[1718976519078,2.30066,3477.3,3477.0,2.30083]
[1718976519279,5.30009,3478.2,3477.1,2.30075]
[1718976519280,2.30058,3477.4,3477.1,2.30075]
[1718976519595,2.30024,3477.9,3477.6,2.30042]
[1718976520655,2.30035,3477.8,3477.3,2.30058]
[1718976520879,2.30035,3477.8,3477.4,2.30054]
[1718976521088,4.7667,3478.8,3477.9,2.30018]
[1718976521289,2.30004,3478.2,3477.9,2.30018]
[1718976521855,3.0,3478.3,3478.0,2.30017]
[1718976522055,5.29998,3478.3,3478.0,2.30017]
[1718976522252,3.0,3478.4,3477.0,2.30077]
[1718976522456,2.30024,3477.9,3477.4,2.30055]
[1718976522692,2.30024,3477.9,3477.5,2.30045]
[1718976523571,2.30024,3477.9,3477.6,2.30041]
[1718976523777,2.30024,3477.9,3477.5,2.30048]
[1718976523778,2.30032,3477.8,3477.5,2.30048]
[1718976523985,2.30032,3477.8,3476.7,2.30101]
[1718976523986,2.30044,3477.6,3477.2,2.30065]
[1718976524295,2.30044,3477.6,3477.3,2.30061]
[1718976524495,2.30057,3477.4,3477.0,2.30082]
[1718976524674,2.30068,3477.3,3476.9,2.30088]
[1718976524869,2.30071,3477.2,3476.7,2.30102]
[1718976525097,2.30082,3477.1,3476.6,2.30109]
[1718976525404,2.30071,3477.2,3476.8,2.30096]
[1718976525690,2.30071,3477.2,3476.7,2.30102]
[1718976525691,2.30071,3477.2,3476.9,2.30089]
[1718976525994,2.30057,3477.4,3477.0,2.30079]
[1718976526306,2.30038,3477.7,3476.9,2.30088]
[1718976526470,5.30025,3477.9,3477.5,2.30049]
[1718976526674,12.1067,3478.4,3477.6,2.30041]
[1718976526870,2.30009,3478.2,3477.8,2.30024]
[1718976527178,2.30004,3478.2,3477.7,2.30036]
[1718976527362,2.30004,3478.2,3477.7,2.30031]
[1718976527553,2.30004,3478.2,3477.9,2.30023]
[1718976527754,7.00663,3478.4,3477.4,2.30055]
[1718976527755,2.30031,3477.8,3477.4,2.30055]
[1718976527959,2.30025,3477.9,3477.5,2.30049]
[1718976528460,2.30018,3478.0,3477.6,2.30043]
[1718976528694,2.30031,3477.8,3477.3,2.30061]
[1718976529096,2.29998,3478.3,3476.6,7.37]
[1718976529401,2.29998,3478.3,3476.3,7.27064]
[1718976529402,2.30045,3477.6,3477.3,2.30057]
[1718976529564,2.30034,3477.8,3477.0,2.30078]
[1718976529565,2.30062,3477.4,3477.0,2.30078]
[1718976529760,2.3005,3477.5,3477.2,2.30069]
[1718976529989,2.30043,3477.7,3477.2,2.30069]
[1718976530396,2.30043,3477.7,3476.9,2.30089]
[1718976530397,2.30054,3477.5,3476.9,2.30089]
[1718976530768,2.30063,3477.4,3477.0,2.30078]
[1718976530968,2.30026,3477.9,3477.2,2.30069]
[1718976531273,3.0,3478.3,3476.5,0.82575662]
[1718976531274,2.30012,3478.1,3477.3,2.30058]
[1718976531500,3.47772553,3479.5,3477.2,2.30064]
[1718976531501,9.69977,3478.6,3477.2,2.30064]
[1718976531702,2.29991,3478.4,3477.9,2.30018]
[1718976531903,2.30004,3478.2,3477.9,2.30018]
[1718976532208,2.30004,3478.2,3477.6,4.60084]
[1718976532209,2.30004,3478.2,3477.8,2.30029]
[1718976532379,2.30017,3478.0,3477.7,2.30035]
[1718976532582,2.30016,3478.1,3477.6,2.30043]
[1718976532783,2.29992,3478.4,3477.6,2.30043]
[1718976533005,2.30018,3478.0,3477.6,2.30043]
[1718976533317,2.30011,3478.1,3477.7,2.30035]
[1718976534495,2.30011,3478.1,3477.8,2.30029]
[1718976534719,2.29998,3478.3,3477.6,2.30043]
[1718976534918,2.30004,3478.2,3477.8,2.30024]
[1718976535123,2.30012,3478.1,3477.8,2.30024]
[1718976535611,3.0,3478.7,3477.9,2.30018]
[1718976535612,2.29998,3478.3,3477.9,2.30018]
[1718976535817,2.09050673,3478.2,3477.9,2.30018]
[1718976536021,2.09050673,3478.2,3477.7,2.30036]
[1718976536179,2.30011,3478.1,3477.7,2.30036]
[1718976536385,2.30011,3478.1,3477.8,2.30027]
[1718976537211,3.0,3478.7,3477.7,2.30036]
[1718976537418,2.30006,3478.2,3477.7,2.30036]
[1718976537576,2.30015,3478.1,3477.7,2.30036]
[1718976537775,2.30018,3478.0,3477.7,2.30036]
[1718976539638,2.30018,3478.0,3477.6,2.30042]
[1718976539819,2.30011,3478.1,3477.6,2.30043]
[1718976539820,2.30024,3477.9,3477.6,2.30043]
[1718976540016,2.30019,3478.0,3477.6,2.30043]
[1718976540340,2.30044,3477.6,3477.3,2.30063]
[1718976540746,2.30038,3477.7,3477.4,2.30056]
[1718976540918,2.3004,3477.7,3477.0,2.30081]
[1718976541242,2.3005,3477.5,3477.1,2.30075]
[1718976541648,2.30024,3477.9,3477.2,2.30067]
[1718976541849,2.09054618,3477.8,3477.4,2.30054]
[1718976542010,2.30004,3478.2,3477.7,2.30037]
[1718976542211,4.18111702,3478.1,3477.7,2.30037]
[1718976542435,2.09055038,3478.0,3477.9,9.20092]
[1718976542774,0.89183886,3479.0,3478.7,2.29965]
[1718976542954,4.17994059,3478.9,3478.7,2.29965]
[1718976543257,2.09000664,3478.8,3478.7,2.29965]
[1718976543606,2.08994333,3479.0,3478.7,2.29965]
[1718976543806,2.08994333,3478.9,3478.7,2.29965]
[1718976544011,2.08994333,3478.8,3478.7,2.29965]
[1718976544212,2.08994333,3479.0,3478.7,2.29965]
[1718976544442,2.08988478,3478.9,3478.7,2.29965]
[1718976544740,2.29945,3479.1,3478.8,2.29964]
[1718976544955,4.17974477,3479.0,3478.6,2.29972]
[1718976545121,2.08986013,3478.9,3478.6,2.29972]
[1718976545323,2.29945,3479.1,3478.6,2.29972]
[1718976545648,2.29937,3479.3,3478.9,2.29957]
[1718976545649,2.08988564,3479.0,3478.9,2.29957]
[1718976546010,0.89183886,3479.4,3479.0,2.2995]
[1718976546346,3.48834849,3479.5,3479.0,2.29946]
[1718976546347,5.07150946,3479.3,3479.0,2.29946]
[1718976546582,1.18911849,3479.5,3479.1,2.29944]
[1718976546583,2.08968514,3479.2,3479.1,2.29944]
[1718976546711,2.29905,3479.7,3479.4,2.29924]
[1718976546910,2.0895922,3479.6,3479.4,2.29924]
[1718976547348,2.29898,3479.8,3479.4,2.29924]
[1718976547561,2.08945928,3479.7,3479.4,2.29924]
[1718976547865,0.89183886,3480.1,3479.4,0.4828494]
[1718976548008,2.29899,3479.8,3479.5,2.29916]
[1718976548407,2.29885,3480.0,3479.6,2.29909]
[1718976548660,3.19054886,3480.2,3479.1,2.529354]
[1718976548661,2.29891,3479.9,3479.1,2.529354]
[1718976548803,2.29897,3479.9,3479.5,2.29914]
[1718976550227,2.29897,3479.9,3478.8,4.02658]
[1718976550228,2.29897,3479.9,3478.5,8.16979]
[1718976550472,2.2993,3479.4,3479.0,2.29951]
[1718976550614,4.894,3479.7,3478.5,2.87]
[1718976550816,2.29967,3478.8,3478.5,2.87]
[1718976551123,2.98160965,3479.6,3478.7,2.2997]
[1718976551124,2.29944,3479.1,3478.7,2.2997]
[1718976551341,2.29938,3479.2,3478.5,0.40025694]
[1718976551543,2.29936,3479.3,3478.8,2.29958]
[1718976551746,2.29926,3479.4,3478.8,2.29958]
[1718976551918,0.89183886,3479.6,3478.9,2.29951]
[1718976552115,2.29931,3479.4,3478.9,2.29951]
[1718976552425,2.29931,3479.4,3478.9,0.459909]
[1718976552633,2.29949,3479.1,3478.5,2.70008694]
[1718976552812,2.29965,3478.8,3478.5,0.40025694]
[1718976553164,2.29959,3478.9,3478.2,2.30003]
[1718976553165,2.29981,3478.6,3478.2,2.30003]
[1718976553314,2.29981,3478.6,3477.9,2.30022]
[1718976553315,2.29991,3478.4,3477.9,2.30022]
[1718976553519,2.30004,3478.2,3477.9,3.74587353]
[1718976553838,2.30017,3478.0,3477.9,1.44565353]
[1718976554042,2.3001,3478.1,3477.9,1.44565353]
[1718976554275,2.3001,3478.1,3477.6,5.0624]
[1718976554455,2.30017,3478.0,3477.6,5.0624]
[1718976554614,2.30043,3477.7,3477.1,2.30074]
[1718976554817,2.30043,3477.7,3477.4,2.30051]
[1718976555014,2.30043,3477.7,3477.3,2.30058]
[1718976555015,2.30037,3477.7,3477.5,0.460109]
[1718976555261,2.3003,3477.8,3477.3,2.30063]
[1718976555624,2.30049,3477.6,3477.2,2.30069]
[1718976556123,2.30049,3477.6,3477.0,7.36317]
[1718976556554,2.30051,3477.5,3477.2,2.30069]
[1718976556732,3.19171735,3477.9,3477.5,2.3005]
[1718976556917,2.30029,3477.9,3477.5,2.3005]
[1718976557117,0.89142735,3478.1,3477.3,3.266986]
[1718976557118,2.30018,3478.0,3477.6,2.30043]
[1718976557328,0.89142735,3478.3,3477.4,2.30056]
[1718976557524,4.48571226,3478.6,3477.8,2.3003]
[1718976557525,2.29978,3478.6,3477.8,2.3003]
[1718976557725,2.29984,3478.5,3478.0,2.30015]
[1718976557952,2.29984,3478.5,3478.0,2.760195]
[1718976558167,2.29994,3478.4,3478.0,2.760195]
[1718976558316,2.29994,3478.4,3478.0,2.30015]
[1718976558522,2.29984,3478.5,3477.5,0.3266946]
[1718976558523,2.30008,3478.2,3477.5,0.3266946]
[1718976558715,2.30035,3477.8,3477.4,2.30056]
[1718976558928,2.30035,3477.8,3477.3,0.966386]
[1718976558929,2.30056,3477.4,3477.3,0.966386]
[1718976559136,2.30056,3477.4,3476.9,2.30089]
[1718976559574,2.30041,3477.7,3477.0,2.30083]
[1718976559855,2.30063,3477.4,3477.0,2.30083]
[1718976560576,2.30041,3477.7,3477.1,2.30075]
[1718976560811,0.89193577,3477.8,3477.2,2.30068]
[1718976560957,3.19220577,3477.9,3477.5,2.3005]
[1718976561539,2.30027,3477.9,3477.4,2.30055]
[1718976561757,2.30036,3477.8,3477.4,2.30055]
[1718976562178,2.30036,3477.8,3477.1,2.30076]
[1718976562179,2.30042,3477.7,3477.3,2.30062]
[1718976562374,2.30042,3477.7,3477.0,2.30082]
[1718976562375,2.30064,3477.3,3477.0,2.30082]
[1718976562699,2.30064,3477.3,3476.8,5.18096]
[1718976562700,2.3007,3477.2,3476.9,2.30089]
[1718976562857,2.3007,3477.2,3476.9,3.279186]
[1718976563373,2.3007,3477.2,3476.8,2.88]
[1718976563992,2.30078,3477.1,3476.8,2.88]
[1718976564702,2.30078,3477.1,3476.7,2.301]
[1718976566654,0.89211131,3477.3,3476.9,2.30088]
[1718976566655,2.30063,3477.3,3476.9,2.30088]
[1718976566903,0.89211131,3477.4,3476.9,2.30088]
[1718976566904,2.30057,3477.4,3476.9,2.30088]
[1718976567208,2.30076,3477.2,3476.8,2.30095]
[1718976567494,2.30068,3477.3,3476.8,2.30095]
[1718976567694,2.30068,3477.3,3476.8,2.531045]
[1718976568121,2.30112,3476.6,3476.3,2.30129]
[1718976568397,2.30099,3476.8,3476.5,2.30116]
[1718976569364,2.30084,3477.0,3476.5,2.30116]
[1718976569565,2.30084,3477.0,3476.3,2.30129]
[1718976569785,2.30074,3477.2,3476.6,2.30104]
[1718976569786,2.3009,3476.9,3476.6,2.30104]
[1718976570456,2.30064,3477.3,3476.7,2.30103]
[1718976570658,2.30075,3477.2,3476.7,2.761204]
[1718976570854,2.30075,3477.2,3476.8,2.30095]
[1718976571464,8.29155355,3477.5,3476.8,2.30095]
[1718976571657,8.29155355,3477.5,3476.9,2.30088]
[1718976571658,7.4,3477.5,3476.9,2.30088]
[1718976571858,9.7005,3477.5,3477.0,2.30082]
[1718976572059,9.7005,3477.5,3477.0,2.5769244]
[1718976572300,2.30057,3477.4,3477.0,4.8777444]
[1718976572502,2.30057,3477.4,3477.0,0.2761044]
[1718976572800,2.30057,3477.4,3477.0,2.30077]
[1718976573095,2.30072,3477.2,3476.8,2.30095]
[1718976573392,2.30072,3477.2,3476.8,4.6019]
[1718976573619,2.30072,3477.2,3476.8,2.30095]
[1718976573810,2.30072,3477.2,3476.9,0.5062204]
[1718976573981,2.30051,3477.5,3477.1,2.30076]
[1718976574299,2.3005,3477.5,3477.2,2.30069]
[1718976574513,2.30042,3477.7,3477.4,2.30056]
[1718976574660,2.30025,3477.9,3477.5,2.30049]
[1718976575868,2.30025,3477.9,3477.6,2.30042]
[1718976576067,2.30025,3477.9,3477.3,2.30063]
[1718976576266,2.30037,3477.7,3477.4,2.30055]
[1718976576469,2.30037,3477.7,3477.3,2.8118218]
[1718976576765,2.30037,3477.7,3476.4,2.30117]
[1718976576766,2.30084,3477.0,3476.4,2.30117]
[1718976576968,2.30101,3476.8,3476.5,2.30116]
[1718976577409,2.30091,3476.9,3476.6,2.30109]
[1718976577582,2.3011,3476.6,3476.3,2.30128]
[1718976577785,2.3011,3476.6,3476.0,2.30145]
[1718976577786,2.30104,3476.7,3476.4,2.30122]
[1718976578300,2.30105,3476.7,3476.2,2.30134]
[1718976578506,2.3011,3476.6,3475.9,2.30154]
[1718976578663,2.3011,3476.6,3476.1,2.30137]
[1718976578863,2.30103,3476.7,3476.2,2.30135]
[1718976579089,2.30114,3476.6,3476.2,2.30135]
[1718976579301,2.30114,3476.6,3476.0,0.714334]
[1718976579302,2.30131,3476.3,3476.0,0.714334]
[1718976579485,2.30131,3476.3,3476.0,2.30148]
[1718976579666,2.30131,3476.3,3475.9,2.30154]
[1718976579864,2.3014,3476.2,3475.5,2.3018]
[1718976580069,2.30123,3476.4,3475.7,2.30168]
[1718976580070,2.30135,3476.3,3475.7,2.30168]
[1718976580370,2.30144,3476.1,3475.8,2.30162]
[1718976580589,2.30136,3476.2,3475.8,2.30156]
[1718976580802,2.3013,3476.3,3476.0,2.30148]
[1718976580968,2.30137,3476.2,3475.8,2.30159]
[1718976581407,2.30143,3476.1,3475.8,2.30159]
[1718976582118,3.19254355,3476.8,3476.0,2.30143]
[1718976582318,2.30103,3476.7,3476.1,2.30142]
[1718976582610,2.30122,3476.5,3476.1,2.30142]
[1718976582794,2.3011,3476.6,3476.2,2.30135]
[1718976583311,3.19242355,3477.0,3476.0,2.30149]
[1718976583312,2.30123,3476.4,3476.0,2.30149]
[1718976583466,2.3011,3476.6,3476.0,2.30149]
[1718976583666,2.3011,3476.6,3475.4,2.30187]
[1718976583873,2.30117,3476.5,3476.2,2.30135]
[1718976584294,2.30091,3476.9,3476.2,2.30135]
[1718976584295,2.30091,3476.9,3476.5,2.3011]
[1718976584904,2.30093,3476.9,3476.0,2.30146]
[1718976585124,2.30114,3476.6,3476.2,2.30135]
[1718976585320,2.30093,3476.9,3476.1,2.30142]
[1718976585667,2.30111,3476.6,3476.0,0.230146]
[1718976585974,2.30122,3476.5,3476.1,2.30141]
[1718976586175,2.3015,3476.0,3475.7,2.30163]
[1718976586389,2.30143,3476.1,3475.7,2.30163]
[1718976586712,2.30135,3476.3,3475.9,2.30151]
[1718976586871,2.30135,3476.3,3475.7,0.58169071]
[1718976586872,2.30135,3476.3,3476.0,2.30149]
[1718976587099,2.30113,3476.6,3476.1,2.3014]
[1718976587271,2.30126,3476.4,3476.1,2.3014]
[1718976587503,2.30097,3476.8,3476.4,2.30116]
[1718976588042,2.30058,3477.4,3477.1,2.30075]
[1718976588499,0.88959232,3478.0,3476.8,2.30094]
[1718976588500,2.30019,3478.0,3476.8,2.30094]
[1718976588684,2.30019,3478.0,3476.9,0.460203]
[1718976589028,5.025,3478.2,3476.9,0.460203]
[1718976589029,8.21464232,3478.2,3476.9,0.460203]
[1718976589168,2.30012,3478.1,3477.7,2.30034]
[1718976589369,2.30011,3478.1,3477.6,2.30043]
[1718976589572,2.30024,3477.9,3477.5,2.30049]
[1718976589800,2.30024,3477.9,3477.3,0.768212]
[1718976589983,2.30051,3477.5,3477.1,2.30076]
[1718976590605,2.30023,3478.0,3476.9,0.460203]
[1718976590805,2.30053,3477.5,3476.3,2.88]
[1718976591027,2.30055,3477.5,3476.3,2.88]
[1718976591233,3.0,3477.8,3476.3,2.88]
[1718976591540,2.3005,3477.5,3477.1,2.30071]
[1718976591699,5.30045,3477.6,3477.2,2.30068]
[1718976592195,5.30045,3477.6,3477.0,2.30083]
[1718976592196,2.30059,3477.4,3477.0,2.30083]
[1718976592794,2.30058,3477.4,3477.0,2.30083]
[1718976593035,2.30058,3477.4,3476.9,2.30089]
[1718976593036,2.30058,3477.4,3477.1,2.30076]
[1718976593424,2.30058,3477.4,3476.9,2.30089]
[1718976593931,2.30058,3477.4,3476.4,2.8653817]
[1718976593932,2.30095,3476.9,3476.4,2.8653817]
[1718976594105,2.30101,3476.8,3476.4,2.30121]
[1718976594308,2.30101,3476.8,3475.8,2.60036632]
[1718976594309,2.30104,3476.7,3475.8,0.29874632]
[1718976594623,2.30121,3476.5,3475.9,4.0]
[1718976594832,2.30121,3476.5,3476.2,2.30135]
[1718976595507,2.30121,3476.5,3475.8,2.30159]
[1718976595508,2.30111,3476.6,3476.3,2.30128]
[1718976595753,2.30108,3476.7,3476.4,2.30123]
[1718976596174,2.30095,3476.9,3476.6,2.30109]
[1718976596339,0.89213781,3477.1,3476.0,2.703]
[1718976596541,1.18951708,3477.2,3476.2,2.30133]
[1718976596542,2.30085,3477.0,3476.2,2.30133]
[1718976596735,2.30101,3476.8,3476.4,2.30119]
[1718976597300,2.30101,3476.8,3476.5,2.30116]
[1718976597644,3.19304781,3476.9,3476.6,2.30107]
[1718976597842,2.30091,3476.9,3476.6,2.30107]
[1718976598354,0.89213781,3477.0,3476.0,2.703]
[1718976598548,1.18951708,3477.2,3476.0,2.703]
[1718976598549,0.89213781,3477.1,3476.1,3.32429809]
[1718976598747,0.89213781,3477.1,3476.8,2.30093]
[1718976598748,2.09110843,3477.0,3476.8,2.30093]
[1718976599044,6.56723668,3477.4,3476.4,2.30123]
[1718976599045,0.89213781,3477.4,3477.0,2.30083]
[1718976599263,2.09097801,3477.3,3477.2,2.3007]
[1718976599479,0.89371557,3477.5,3477.2,4.6014]
[1718976599680,0.89371557,3477.5,3477.1,2.30072]
[1718976599681,0.89371557,3477.6,3477.3,2.30062]
[1718976599886,0.89371557,3477.9,3477.5,2.30046]
[1718976600097,0.89371557,3478.0,3477.9,2.30023]
[1718976600303,2.30044,3477.6,3477.0,2.30079]
[1718976600624,0.89430827,3477.5,3477.4,4.60112]
[1718976600746,1.78743114,3478.2,3477.4,4.60112]
[1718976600747,1.19250621,3478.0,3477.8,2.30029]
[1718976600949,1.19250621,3478.0,3477.4,2.760672]
[1718976600950,5.28525839,3477.9,3477.4,2.30056]
[1718976601152,2.30067,3477.3,3476.9,2.30089]
[1718976601352,3.19492315,3477.6,3476.9,2.30083]
[1718976601353,0.89443315,3477.4,3476.9,2.30083]
[1718976601588,3.79098189,3477.8,3477.3,2.30057]
[1718976601589,0.89443315,3477.5,3477.3,2.30057]
[1718976601789,2.09073017,3477.4,3477.0,2.30083]
[1718976602082,2.98516332,3477.4,3477.3,2.30063]
[1718976602297,0.89443315,3478.0,3477.5,2.3005]
[1718976602515,4.08856427,3478.6,3477.3,4.6457]
[1718976602516,0.89443315,3478.2,3477.8,2.30025]
[1718976602653,0.89443315,3478.2,3476.7,2.88]
[1718976602654,0.89443315,3478.0,3477.7,2.3003]
[1718976602853,2.30032,3477.8,3477.4,2.30054]
[1718976603052,2.09058033,3477.7,3476.7,7.8072]
[1718976603353,2.09058033,3477.7,3476.9,2.30088]
[1718976603354,3.19504315,3477.4,3476.9,2.30088]
[1718976603581,9.04635513,3478.1,3477.1,4.60152]
[1718976603582,0.89471082,3477.2,3477.1,4.60152]
[1718976603905,0.89471082,3477.2,3476.9,2.30084]
[1718976604056,0.894625,3477.1,3477.0,2.30083]
[1718976604461,1.19252951,3477.2,3476.4,3.09362781]
[1718976604665,2.08734947,3477.0,3476.4,2.30123]
[1718976604888,2.08734947,3477.0,3476.6,2.30109]
[1718976604889,0.89481996,3476.7,3476.6,2.30109]
[1718976605396,2.30118,3476.5,3476.1,2.30138]
[1718976605550,2.30118,3476.5,3476.2,2.30134]
[1718976605762,3.49414853,3476.5,3476.2,2.30134]
[1718976606056,1.19296853,3476.5,3476.2,2.30134]
[1718976606260,3.49406853,3476.6,3476.3,2.30129]
[1718976606482,2.30119,3476.5,3476.1,2.30142]
[1718976606759,2.30119,3476.5,3476.0,2.30149]
[1718976606760,2.30119,3476.5,3476.2,2.30135]
[1718976606959,3.49407853,3476.6,3476.2,2.30135]
[1718976607196,2.09130833,3476.5,3476.2,2.30135]
[1718976607694,2.30116,3476.5,3476.0,2.30148]
[1718976607994,2.3013,3476.3,3476.0,2.30148]
[1718976608199,1.19296853,3476.4,3475.8,2.30157]
[1718976608406,3.49420853,3476.4,3475.8,2.531727]
[1718976608619,5.58576826,3476.3,3476.0,2.30149]
[1718976608902,3.49431853,3476.3,3476.0,2.30149]
[1718976609376,3.49431853,3476.3,3476.1,2.3014]
[1718976609377,1.19296853,3476.3,3476.1,2.3014]
[1718976609703,1.19296853,3476.4,3476.3,2.30129]
[1718976610006,1.19296853,3476.7,3476.6,2.30109]
[1718976610169,1.19296853,3477.1,3476.9,2.3009]
[1718976610504,1.19296853,3477.1,3476.4,2.30122]
[1718976610723,1.78890274,3477.6,3476.3,0.230129]
[1718976610724,2.30098,3476.8,3476.3,2.30128]
[1718976610917,5.58526775,3476.7,3476.4,2.30123]
[1718976611121,3.49400853,3476.7,3476.4,2.30123]
[1718976611419,1.19296853,3476.8,3476.7,2.30103]
[1718976611581,3.28412487,3476.9,3476.8,6.90288]
[1718976611782,2.4502988,3478.0,3476.9,4.6018]
[1718976612005,2.4502988,3478.0,3477.4,2.30051]
[1718976612006,1.19292824,3477.5,3477.4,2.30051]
[1718976612205,1.19292824,3477.5,3477.0,2.76096]
[1718976612206,1.19292824,3477.8,3477.6,2.30043]
[1718976612413,2.30016,3478.1,3477.7,2.30037]
[1718976612615,1.19267349,3477.9,3477.7,2.30037]
[1718976612917,2.30044,3477.6,3477.3,2.3006]
[1718976613586,1.19240854,3477.7,3477.4,2.30056]
[1718976613821,1.19240854,3477.7,3477.1,2.30072]
[1718976614041,1.19240854,3477.7,3476.7,2.30099]
[1718976614042,2.3009,3476.9,3476.4,2.3012]
[1718976614245,1.49054178,3477.5,3476.5,4.0]
[1718976614246,2.30109,3476.6,3476.5,4.0]
[1718976614515,2.68295032,3476.8,3476.6,2.30109]
[1718976614723,2.68295032,3476.8,3476.5,4.0]
[1718976614724,1.19192496,3476.8,3476.5,4.0]
[1718976614894,0.89406513,3476.8,3476.7,6.90309]
[1718976615096,0.89406513,3476.8,3476.6,0.4]
[1718976615097,0.89432614,3477.1,3476.6,0.4]
[1718976615424,2.0862511,3477.1,3476.6,2.70109]
[1718976615628,0.89432614,3476.9,3476.5,4.0]
[1718976615808,0.89432614,3476.9,3476.2,2.30133]
[1718976615809,0.89432614,3476.6,3476.4,2.30123]
[1718976616129,0.89445528,3476.6,3476.5,2.30116]
[1718976616424,2.30121,3476.5,3476.0,2.30148]
[1718976616584,0.89424975,3476.2,3476.0,2.30148]
[1718976616779,0.89424975,3476.2,3475.6,2.30175]
[1718976616780,0.89424975,3476.1,3475.6,2.30175]
[1718976616986,0.89424975,3476.0,3475.7,2.30165]
[1718976617295,0.89424975,3476.0,3475.8,2.30162]
[1718976617501,3.19578975,3476.0,3475.8,0.02543857]
[1718976617729,3.19578975,3476.0,3475.4,2.56108972]
[1718976617730,0.89424975,3476.0,3475.7,2.30169]
[1718976618021,3.19574975,3476.0,3475.7,2.30169]
[1718976618239,2.30156,3475.9,3475.8,0.02573397]
[1718976618442,0.89424975,3476.0,3475.7,2.30169]
[1718976618642,3.19572975,3476.1,3475.8,0.02573397]
[1718976618849,0.89424975,3476.0,3475.7,2.30164]
[1718976619032,0.89424975,3476.0,3475.9,0.02596961]
[1718976619235,0.89424975,3476.0,3475.8,2.30161]
[1718976619529,3.19574975,3476.0,3475.7,2.30169]
[1718976619700,3.19574975,3476.0,3475.7,4.60338]
[1718976619902,0.89424975,3476.0,3475.5,2.30176]
[1718976620232,0.89424975,3476.2,3476.1,2.30142]
[1718976620432,0.89424975,3476.2,3476.1,4.60284]
[1718976620609,0.89424975,3476.3,3476.2,2.30136]
[1718976620826,2.98579023,3476.3,3475.8,2.30159]
[1718976621168,3.19568975,3476.1,3475.5,2.3018]
[1718976621350,0.89424975,3476.0,3475.8,2.30162]
[1718976621938,0.89424975,3476.0,3475.7,2.30168]
[1718976622733,0.56124975,3476.0,3475.7,2.30168]
[1718976622931,1.192333,3476.2,3476.1,2.30142]
[1718976623179,2.30102,3476.8,3476.1,2.30142]
[1718976623180,1.192333,3476.6,3476.1,2.30142]
[1718976623335,1.192333,3476.6,3476.1,2.30141]
[1718976623336,2.30124,3476.4,3476.1,2.30141]
[1718976623522,1.192333,3476.5,3476.2,2.30135]
[1718976623728,2.30123,3476.4,3476.1,2.30142]
[1718976623951,2.30136,3476.2,3475.2,0.3]
[1718976624162,2.30143,3476.1,3475.8,2.30162]
[1718976624360,2.30154,3476.0,3475.6,2.3017]
[1718976624775,2.30166,3475.8,3475.2,2.30202]
[1718976625061,1.192333,3476.1,3475.2,2.30202]
[1718976625062,3.493903,3475.9,3475.2,3.002022]
[1718976625262,2.30182,3475.6,3475.2,2.30202]
[1718976625462,2.30182,3475.5,3475.2,2.30201]
[1718976625672,2.30183,3475.5,3475.0,2.30209]
[1718976625827,5.953133,3475.7,3475.0,2.30209]
[1718976625828,2.30176,3475.6,3475.0,2.30215]
[1718976626034,3.493963,3475.8,3475.4,2.30183]
[1718976626347,2.30176,3475.6,3475.4,2.30183]
[1718976626526,3.493963,3475.8,3475.4,2.30183]
[1718976626527,1.192333,3475.8,3475.4,2.30183]
[1718976626723,2.09189785,3475.7,3475.4,2.30183]
[1718976626962,1.192333,3476.0,3475.7,2.30163]
[1718976627173,1.192333,3476.2,3475.9,2.30156]
[1718976627379,1.192333,3476.4,3476.2,2.30136]
[1718976627587,1.19235042,3476.5,3476.4,2.30123]
[1718976627864,2.30098,3476.8,3476.4,0.02522979]
[1718976627865,5.58491857,3476.6,3476.4,0.02522979]
[1718976628075,2.09145815,3476.5,3476.4,0.02522979]
[1718976628244,2.09145815,3476.5,3476.4,4.60246]
[1718976628448,0.15012714,3477.9,3476.4,4.60246]
[1718976628449,1.19235042,3476.9,3476.6,2.30109]
[1718976628654,1.19235042,3476.9,3476.4,0.48566223]
[1718976628655,1.19235042,3477.1,3476.4,0.48566223]
[1718976628967,1.19235042,3477.2,3477.0,2.30083]
[1718976629137,3.79066514,3477.3,3476.7,2.30097]
[1718976629138,3.49299042,3477.3,3476.7,2.30097]
[1718976629342,3.49299042,3477.3,3477.1,0.02524033]
[1718976629343,5.58402257,3477.2,3477.1,0.02524033]
[1718976629546,2.30082,3477.1,3476.7,2.30103]
[1718976629743,3.58180594,3477.2,3475.9,0.29871002]
[1718976629744,2.30104,3476.7,3475.9,0.29871002]
[1718976629950,6.9027,3476.9,3476.8,0.02524033]
[1718976630153,2.30098,3476.8,3476.1,2.30136]
[1718976630467,2.3013,3476.3,3475.4,2.532043]
[1718976630665,1.19243829,3476.3,3475.5,0.4834053]
[1718976630846,2.30159,3475.9,3475.5,2.30181]
[1718976631029,2.30165,3475.8,3475.5,2.30181]
[1718976631228,2.30157,3475.9,3475.6,2.30174]
[1718976631862,0.89435399,3475.9,3475.8,2.30162]
[1718976632069,0.89437711,3476.2,3476.1,2.30137]
[1718976632225,0.89437711,3476.3,3476.1,2.30137]
[1718976632425,3.49366282,3476.5,3476.1,2.30137]